[Event "Slovakia Open Piestany-A 2022"]
[Site "Piestany"]
[Date "2022.07.15"]
[Round "5.2"]
[White "Demchenko, Anton"]
[Black "Moroni, Luca Jr"]
[Result "1/2-1/2"]
[ECO "C50"]
[WhiteElo "2653"]
[BlackElo "2584"]
[Annotator "ChessBase"]
[PlyCount "129"]
[EventDate "2022.07.12"]
[EventType "swiss"]
[EventCountry "SVK"]
[SourceTitle "playchess.com"]
[Source "ChessBase"]
[SourceQuality "1"]
[TimeControl "40/5400+30:1800+30"]

1. e4 {[%emt 0:00:05]} e5 {[%emt 0:04:03]} 2. Nf3 {[%emt 0:00:05]} Nc6 {[%emt 0:00:03]} 3. Bc4 {[%emt 0:00:22]} Bc5 {[%emt 0:00:05]} 4. d3 {[%emt 0:00:05]} h6 {[%emt 0:00:03]} 5. Nc3 {[%emt 0:02:51]} Nf6 {[%emt 0:02:53]} 6. h3 {[%emt 0:00:57]} d6 {[%emt 0:00:07]} 7. Na4 {[%emt 0:00:11]} Bb6 {[%emt 0:00:05]} 8. c3 {[%emt 0:00:30]} O-O {[%emt 0:00:15]} 9. O-O {[%emt 0:02:16]} Be6 {[%emt 0:00:04]} 10. Bxe6 {[%emt 0:01:24]} fxe6 {[%emt 0:00:02]} 11. b4 {[%emt 0:02:13]} Qe8 {[%emt 0:00:33]} 12. Nxb6 {[%emt 0:04:07]} axb6 {[%emt 0:00:40]} 13. Be3 {[%emt 0:00:31]} Qg6 {[%emt 0:00:06]} 14. a4 {[%emt 0:01:41]} Nh5 {[%emt 0:05:23]} 15. Kh2 {[%emt 0:05:57]} Nf4 {[%emt 0:05:09]} 16. Bxf4 {[%emt 0:01:35]} Rxf4 {[%emt 0:03:41]} 17. Nd2 {[%emt 0:10:58]} Kh7 {[%emt 0:13:21]} 18. Qe2 {[%emt 0:00:45]} Rff8 {[%emt 0:03:29]} 19. Ra2 {[%emt 0:07:55]} Qf7 {[%emt 0:05:18]} 20. Kg1 {[%emt 0:03:46]} Ra7 {[%emt 0:01:11]} 21. Rfa1 {[%emt 0:01:21]} Rfa8 {[%emt 0:00:53]} 22. b5 {[%emt 0:07:03]} Ne7 {[%emt 0:00:28]} 23. g3 {[%emt 0:01:37]} Ng6 {[%emt 0:01:48]} 24. Nc4 {[%emt 0:04:24]} Nf8 {[%emt 0:02:01]} 25. a5 {[%emt 0:05:54]} bxa5 {[%emt 0:07:27]} 26. Nxa5 {[%emt 0:13:10]} b6 {[%emt 0:10:55]} 27. Nc4 {[%emt 0:01:54]} Rxa2 {[%emt 0:04:04]} 28. Rxa2 {[%emt 0:00:00]} Rxa2 {[%emt 0:00:30]} 29. Qxa2 {[%emt 0:00:03]} Nd7 {[%emt 0:00:30]} 30. Kg2 {[%emt 0:01:58]} Nc5 {[%emt 0:03:48]} 31. Qb1 {[%emt 0:00:44]} Qe8 {[%emt 0:01:56]} 32. d4 {[%emt 0:03:12]} Nd7 {[%emt 0:00:01]} 33. Ne3 {[%emt 0:05:06]} Kh8 {[%emt 0:01:17]} 34. f3 {[%emt 0:00:46]} Qa8 {[%emt 0:03:41]} 35. d5 {[%emt 0:03:23]} exd5 {[%emt 0:02:30]} 36. Nxd5 {[%emt 0:00:02]} Qa3 {[%emt 0:00:30]} 37. Qc2 {[%emt 0:02:52]} Qc5 {[%emt 0:04:18]} 38. Qd3 {[%emt 0:00:06]} c6 {[%emt 0:04:40]} 39. bxc6 {[%emt 0:01:26]} Qxc6 {[%emt 0:00:02]} 40. Qa6 {[%emt 0:01:32]} Kh7 {[%emt 0:11:55]} 41. h4 {[%emt 0:31:38]} h5 {[%emt 0:30:11]} 42. Qa2 {[%emt 0:00:00]} Qb5 {[%emt 0:00:00]} 43. Qd2 {[%emt 0:00:00]} Nf6 {[%emt 0:00:00]} 44. Ne3 {[%emt 0:00:00]} Qc5 {[%emt 0:00:00]} 45. Nf5 {[%emt 0:00:00]} d5 {[%emt 0:00:00]} 46. Qg5 {[%emt 0:00:00]} Qf8 {[%emt 0:00:00]} 47. exd5 {[%emt 0:00:00]} Nxd5 {[%emt 0:00:00]} 48. Qxh5+ {[%emt 0:00:00]} Kg8 {[%emt 0:00:00]} 49. Kh2 {[%emt 0:00:00]} Nxc3 {[%emt 0:00:00]} 50. Qg6 {[%emt 0:00:00]} Qf6 {[%emt 0:00:00]} 51. Qe8+ {[%emt 0:00:00]} Kh7 {[%emt 0:00:12]} 52. Ne7 {[%emt 0:00:00]} g6 {[%emt 0:00:00]} 53. Qg8+ {[%emt 0:06:15]} Kh6 {[%emt 0:00:00]} 54. Nc8 {[%emt 0:02:01]} Ne4 {[%emt 0:05:38]} 55. Nxb6 {[%emt 0:00:48]} Nd2 {[%emt 0:01:02]} 56. Nd7 {[%emt 0:01:44]} Nxf3+ {[%emt 0:00:07]} 57. Kg2 {[%emt 0:00:44]} Nxh4+ {[%emt 0:00:59]} 58. gxh4 {[%emt 0:00:16]} Qc6+ {[%emt 0:00:06]} 59. Kf2 {[%emt 0:00:36]} Qc2+ {[%emt 0:00:35]} 60. Ke1 {[%emt 0:00:31]} Qc1+ {[%emt 0:00:21]} 61. Ke2 {[%emt 0:00:15]} Qc2+ {[%emt 0:00:05]} 62. Ke1 {[%emt 0:00:08]} Qe4+ {[%emt 0:00:41]} 63. Kd2 {[%emt 0:00:29]} Qd4+ {[%emt 0:00:06]} 64. Ke2 {[%emt 0:00:15]} Qg4+ {[%emt 0:00:15]} 65. Kf1 {[%emt 0:01:12]} 1/2-1/2

[Event "Slovakia Open Piestany-A 2022"]
[Site "Piestany"]
[Date "2022.07.15"]
[Round "5.3"]
[White "Stefansson, Vignir Vatnar"]
[Black "Neugebauer, Martin"]
[Result "0-1"]
[ECO "E06"]
[WhiteElo "2461"]
[BlackElo "2528"]
[Annotator "ChessBase"]
[PlyCount "54"]
[EventDate "2022.07.12"]
[EventType "swiss"]
[EventCountry "SVK"]
[SourceTitle "playchess.com"]
[Source "ChessBase"]
[SourceQuality "1"]
[TimeControl "40/5400+30:1800+30"]

1. Nf3 {[%emt 0:05:25]} Nf6 {[%emt 0:02:49]} 2. c4 {[%emt 0:00:11]} e6 {[%emt 0:00:22]} 3. g3 {[%emt 0:00:48]} d5 {[%emt 0:00:46]} 4. Bg2 {[%emt 0:00:15]} Be7 {[%emt 0:00:16]} 5. d4 {[%emt 0:00:20]} O-O {[%emt 0:00:28]} 6. O-O {[%emt 0:02:10]} c6 {[%emt 0:00:48]} 7. Qc2 {[%emt 0:02:15]} b6 {[%emt 0:01:40]} 8. Nbd2 {[%emt 0:00:09]} Bb7 {[%emt 0:00:45]} 9. e4 {[%emt 0:00:08]} Na6 {[%emt 0:01:22]} 10. a3 {[%emt 0:00:52]} c5 {[%emt 0:02:39]} 11. exd5 {[%emt 0:02:02]} exd5 {[%emt 0:00:06]} 12. dxc5 {[%emt 0:06:50]} Nxc5 {[%emt 0:03:05]} 13. b4 {[%emt 0:00:31]} Ne6 {[%emt 0:02:00]} 14. Bb2 {[%emt 0:01:10]} Rc8 {[%emt 0:02:53]} 15. Nh4 {[%emt 0:16:19]} Qc7 {[%emt 0:19:56]} 16. Rac1 {[%emt 0:03:57]} dxc4 {[%emt 0:03:20]} 17. Qxc4 {[%emt 0:03:01]} Qd7 {[%emt 0:06:34]} 18. Qe2 {[%emt 0:00:43]} Bxg2 {[%emt 0:00:35]} 19. Nxg2 {[%emt 0:00:30]} Ng5 {[%emt 0:09:14]} 20. Nc4 {[%emt 0:04:01]} Qb7 {[%emt 0:08:04]} 21. Ne5 {[%emt 0:10:24]} Bd6 {[%emt 0:09:57]} 22. Nc4 {[%emt 0:04:40]} Bf4 {[%emt 0:12:49]} 23. Rc2 {[%emt 0:20:19]} Rfe8 {[%emt 0:02:59]} 24. Qd1 {[%emt 0:00:06]} Rcd8 {[%emt 0:02:52]} 25. Qb1 {[%emt 0:00:57]} Nf3+ {[%emt 0:00:33]} 26. Kh1 {[%emt 0:00:05]} Bg5 {[%emt 0:00:14]} 27. h4 {[%emt 0:04:26]} Qd7 {[%emt 0:00:45]} 0-1

[Event "Slovakia Open Piestany-A 2022"]
[Site "Piestany"]
[Date "2022.07.15"]
[Round "5.4"]
[White "Schitco, Ivan"]
[Black "Samunenkov, Ihor"]
[Result "1/2-1/2"]
[ECO "A11"]
[WhiteElo "2490"]
[BlackElo "2448"]
[Annotator "ChessBase"]
[PlyCount "146"]
[EventDate "2022.07.12"]
[EventType "swiss"]
[EventCountry "SVK"]
[SourceTitle "playchess.com"]
[Source "ChessBase"]
[SourceQuality "1"]
[TimeControl "40/5400+30:1800+30"]

1. c4 {[%emt 0:00:05]} e6 {[%emt 0:00:10]} 2. Nc3 {[%emt 0:00:37]} d5 {[%emt 0:00:11]} 3. e3 {[%emt 0:00:24]} Nf6 {[%emt 0:03:38]} 4. Nf3 {[%emt 0:00:21]} c6 {[%emt 0:01:42]} 5. b3 {[%emt 0:01:13]} Nbd7 {[%emt 0:00:15]} 6. Bb2 {[%emt 0:00:34]} Bd6 {[%emt 0:01:03]} 7. Qc2 {[%emt 0:02:21]} Qe7 {[%emt 0:00:55]} 8. Be2 {[%emt 0:03:44]} a6 {[%emt 0:07:27]} 9. Rc1 {[%emt 0:05:24]} dxc4 {[%emt 0:06:09]} 10. bxc4 {[%emt 0:03:28]} e5 {[%emt 0:02:44]} 11. g4 {[%emt 0:16:23]} Nc5 {[%emt 0:11:49]} 12. g5 {[%emt 0:03:26]} Nfd7 {[%emt 0:00:42]} 13. h4 {[%emt 0:10:00]} b5 {[%emt 0:12:01]} 14. Ne4 {[%emt 0:09:26]} Nxe4 {[%emt 0:06:28]} 15. Qxe4 {[%emt 0:00:06]} Rb8 {[%emt 0:03:32]} 16. c5 {[%emt 0:06:04]} Nxc5 {[%emt 0:04:05]} 17. Rxc5 {[%emt 0:03:12]} Bxc5 {[%emt 0:00:33]} 18. Bxe5 {[%emt 0:08:43]} f6 {[%emt 0:10:16]} 19. gxf6 {[%emt 0:01:43]} gxf6 {[%emt 0:00:08]} 20. Qxc6+ {[%emt 0:00:39]} Bd7 {[%emt 0:00:16]} 21. Qxf6 {[%emt 0:00:44]} Qxf6 {[%emt 0:00:20]} 22. Bxf6 {[%emt 0:00:02]} Rf8 {[%emt 0:00:59]} 23. Bg7 {[%emt 0:02:36]} Rg8 {[%emt 0:05:29]} 24. Be5 {[%emt 0:02:42]} Rc8 {[%emt 0:02:02]} 25. Ng5 {[%emt 0:01:08]} h6 {[%emt 0:11:06]} 26. Bh5+ {[%emt 0:06:17]} Ke7 {[%emt 0:02:06]} 27. Ne4 {[%emt 0:00:36]} Bc6 {[%emt 0:01:35]} 28. Bf6+ {[%emt 0:06:05]} Ke6 {[%emt 0:01:53]} 29. Nxc5+ {[%emt 0:01:07]} Kxf6 {[%emt 0:00:05]} 30. Rh2 {[%emt 0:02:48]} Rg1+ {[%emt 0:00:53]} 31. Ke2 {[%emt 0:00:05]} Bf3+ {[%emt 0:00:13]} 32. Bxf3 {[%emt 0:00:25]} Rxc5 {[%emt 0:00:05]} 33. h5 {[%emt 0:00:34]} Ra1 {[%emt 0:01:06]} 34. Rh4 {[%emt 0:01:16]} Rxa2 {[%emt 0:01:08]} 35. Rd4 {[%emt 0:00:04]} Rcc2 {[%emt 0:03:26]} 36. Bd5 {[%emt 0:01:55]} Ra4 {[%emt 0:00:50]} 37. Rd3 {[%emt 0:00:03]} Rh4 {[%emt 0:01:07]} 38. Bf3 {[%emt 0:00:01]} Ke7 {[%emt 0:00:21]} 39. Rd5 {[%emt 0:00:50]} b4 {[%emt 0:00:33]} 40. Re5+ {[%emt 0:02:00]} Kd7 {[%emt 0:00:36]} 41. Rf5 {[%emt 0:11:59]} Rhc4 {[%emt 0:17:54]} 42. Rf7+ {[%emt 0:02:14]} Ke8 {[%emt 0:06:04]} 43. Ra7 {[%emt 0:08:36]} b3 {[%emt 0:01:46]} 44. Rb7 {[%emt 0:01:10]} Rb2 {[%emt 0:01:15]} 45. Bd5 {[%emt 0:02:02]} Rcc2 {[%emt 0:00:33]} 46. Bxb3 {[%emt 0:01:11]} Rxd2+ {[%emt 0:00:12]} 47. Kf3 {[%emt 0:00:12]} Rxf2+ {[%emt 0:00:45]} 48. Kg3 {[%emt 0:00:58]} Rg2+ {[%emt 0:02:42]} 49. Kf3 {[%emt 0:00:04]} Rgf2+ {[%emt 0:00:35]} 50. Kg3 {[%emt 0:00:01]} Kf8 {[%emt 0:02:29]} 51. Ra7 {[%emt 0:02:41]} Rg2+ {[%emt 0:00:47]} 52. Kf3 {[%emt 0:00:01]} Rgf2+ {[%emt 0:00:32]} 53. Kg3 {[%emt 0:00:01]} Rf5 {[%emt 0:00:31]} 54. Ra8+ {[%emt 0:01:21]} Ke7 {[%emt 0:00:29]} 55. Ra7+ {[%emt 0:00:01]} Kd8 {[%emt 0:00:53]} 56. Bd1 {[%emt 0:00:56]} Rg5+ {[%emt 0:00:34]} 57. Kf4 {[%emt 0:00:53]} Rb6 {[%emt 0:00:29]} 58. Be2 {[%emt 0:01:38]} Rf6+ {[%emt 0:00:28]} 59. Ke4 {[%emt 0:00:01]} a5 {[%emt 0:00:09]} 60. Bd1 {[%emt 0:02:16]} Re6+ {[%emt 0:00:17]} 61. Kf4 {[%emt 0:00:28]} Rf6+ {[%emt 0:00:22]} 62. Ke4 {[%emt 0:00:03]} Rb6 {[%emt 0:00:53]} 63. Kf4 {[%emt 0:00:42]} Kc8 {[%emt 0:00:51]} 64. Ra8+ {[%emt 0:01:21]} Kb7 {[%emt 0:00:23]} 65. Bf3+ {[%emt 0:00:09]} Kc7 {[%emt 0:00:01]} 66. Ra7+ {[%emt 0:00:31]} Kc8 {[%emt 0:00:52]} 67. Ra8+ {[%emt 0:00:08]} Kc7 {[%emt 0:00:39]} 68. Ra7+ {[%emt 0:00:02]} Kd8 {[%emt 0:00:06]} 69. Ra8+ {[%emt 0:00:38]} Ke7 {[%emt 0:00:55]} 70. Ra7+ {[%emt 0:00:03]} Kf8 {[%emt 0:00:34]} 71. Ra8+ {[%emt 0:00:17]} Ke7 {[%emt 0:00:28]} 72. Ra7+ {[%emt 0:00:01]} Kd6 {[%emt 0:00:14]} 73. Rh7 {[%emt 0:01:36]} Rbb5 {[%emt 0:00:50]} 1/2-1/2

[Event "Slovakia Open Piestany-A 2022"]
[Site "Piestany"]
[Date "2022.07.15"]
[Round "5.5"]
[White "Sahidi, Samir"]
[Black "Lewtak, Damian"]
[Result "0-1"]
[ECO "A21"]
[WhiteElo "2462"]
[BlackElo "2397"]
[Annotator "ChessBase"]
[PlyCount "128"]
[EventDate "2022.07.12"]
[EventType "swiss"]
[EventCountry "SVK"]
[SourceTitle "playchess.com"]
[Source "ChessBase"]
[SourceQuality "1"]
[TimeControl "40/5400+30:1800+30"]

1. c4 {[%emt 0:00:08]} e5 {[%emt 0:03:18]} 2. Nc3 {[%emt 0:00:53]} Bb4 {[%emt 0:00:45]} 3. g3 {[%emt 0:01:01]} Bxc3 {[%emt 0:00:10]} 4. dxc3 {[%emt 0:02:45]} d6 {[%emt 0:01:01]} 5. Bg2 {[%emt 0:01:38]} f5 {[%emt 0:02:26]} 6. Nf3 {[%emt 0:03:12]} Nf6 {[%emt 0:01:30]} 7. O-O {[%emt 0:00:19]} Qe7 {[%emt 0:05:07]} 8. Qc2 {[%emt 0:01:47]} O-O {[%emt 0:00:58]} 9. b3 {[%emt 0:03:25]} Nc6 {[%emt 0:01:50]} 10. Nh4 {[%emt 0:03:52]} Nh5 {[%emt 0:10:45]} 11. Bf3 {[%emt 0:07:17]} Qe8 {[%emt 0:02:42]} 12. Bd5+ {[%emt 0:01:41]} Kh8 {[%emt 0:02:16]} 13. f4 {[%emt 0:00:22]} Ne7 {[%emt 0:08:06]} 14. fxe5 {[%emt 0:12:51]} Nxd5 {[%emt 0:00:51]} 15. cxd5 {[%emt 0:00:14]} Qxe5 {[%emt 0:00:32]} 16. e4 {[%emt 0:01:58]} Bd7 {[%emt 0:04:24]} 17. Nxf5 {[%emt 0:01:55]} Nf6 {[%emt 0:02:34]} 18. Bb2 {[%emt 0:03:21]} Qxe4 {[%emt 0:01:12]} 19. Qxe4 {[%emt 0:01:17]} Nxe4 {[%emt 0:00:05]} 20. Nd4 {[%emt 0:00:37]} Bh3 {[%emt 0:03:04]} 21. Rfe1 {[%emt 0:02:57]} Rf2 {[%emt 0:12:49]} 22. Rxe4 {[%emt 0:04:53]} Raf8 {[%emt 0:03:50]} 23. Ree1 {[%emt 0:05:49]} h6 {[%emt 0:03:12]} 24. Ne2 {[%emt 0:01:15]} Rg2+ {[%emt 0:00:13]} 25. Kh1 {[%emt 0:00:05]} Rff2 {[%emt 0:00:08]} 26. Nf4 {[%emt 0:00:11]} Rxh2+ {[%emt 0:00:07]} 27. Kg1 {[%emt 0:00:08]} Rxb2 {[%emt 0:00:12]} 28. Rab1 {[%emt 0:04:34]} Rxa2 {[%emt 0:03:32]} 29. Ra1 {[%emt 0:04:07]} Bg4 {[%emt 0:00:50]} 30. Rxa2 {[%emt 0:00:50]} Rxa2 {[%emt 0:00:06]} 31. Re8+ {[%emt 0:00:35]} Kh7 {[%emt 0:00:20]} 32. Rb8 {[%emt 0:00:43]} b6 {[%emt 0:05:43]} 33. Ne6 {[%emt 0:06:40]} Bxe6 {[%emt 0:01:16]} 34. dxe6 {[%emt 0:00:05]} Re2 {[%emt 0:00:04]} 35. Rb7 {[%emt 0:04:20]} Rxe6 {[%emt 0:02:25]} 36. Rxc7 {[%emt 0:00:15]} Re3 {[%emt 0:02:46]} 37. Kf2 {[%emt 0:00:08]} Rd3 {[%emt 0:00:10]} 38. b4 {[%emt 0:00:24]} a5 {[%emt 0:09:57]} 39. b5 {[%emt 0:01:00]} d5 {[%emt 0:02:55]} 40. Rc6 {[%emt 0:05:04]} a4 {[%emt 0:00:27]} 41. Rxb6 {[%emt 0:30:56]} Rxc3 {[%emt 0:30:09]} 42. Ra6 {[%emt 0:01:13]} Rb3 {[%emt 0:00:09]} 43. Rxa4 {[%emt 0:00:18]} Rxb5 {[%emt 0:00:07]} 44. Ra6 {[%emt 0:00:20]} Rb4 {[%emt 0:01:09]} 45. Rd6 {[%emt 0:00:22]} Rd4 {[%emt 0:02:30]} 46. Kf3 {[%emt 0:01:54]} h5 {[%emt 0:02:28]} 47. Ke3 {[%emt 0:00:39]} Rg4 {[%emt 0:00:48]} 48. Kf3 {[%emt 0:01:09]} d4 {[%emt 0:00:11]} 49. Rb6 {[%emt 0:02:11]} g6 {[%emt 0:00:58]} 50. Rb7+ {[%emt 0:00:00]} Kh6 {[%emt 0:00:00]} 51. Rb5 {[%emt 0:00:00]} Kg7 {[%emt 0:00:00]} 52. Rb6 {[%emt 0:00:00]} Kf7 {[%emt 0:00:00]} 53. Ra6 {[%emt 0:00:00]} Ke7 {[%emt 0:00:00]} 54. Kf2 {[%emt 0:00:00]} d3 {[%emt 0:00:00]} 55. Ra1 {[%emt 0:09:05]} d2 {[%emt 0:00:00]} 56. Rd1 {[%emt 0:00:15]} Rd4 {[%emt 0:00:00]} 57. Ke3 {[%emt 0:00:09]} Rd6 {[%emt 0:00:00]} 58. Rxd2 {[%emt 0:00:18]} Rxd2 {[%emt 0:00:00]} 59. Kxd2 {[%emt 0:00:07]} Kf6 {[%emt 0:00:00]} 60. Ke2 {[%emt 0:01:34]} Kg5 {[%emt 0:00:00]} 61. Kf3 {[%emt 0:03:47]} Kf5 {[%emt 0:00:00]} 62. Kf2 {[%emt 0:01:59]} Kg4 {[%emt 0:00:00]} 63. Kg2 {[%emt 0:00:04]} g5 {[%emt 0:00:00]} 64. Kh2 {[%emt 0:00:15]} Kf3 {[%emt 0:00:00]} 0-1

[Event "Slovakia Open Piestany-A 2022"]
[Site "Piestany"]
[Date "2022.07.15"]
[Round "5.6"]
[White "Gretarsson, Helgi Ass"]
[Black "Niedbala, Bartlomiej"]
[Result "1/2-1/2"]
[ECO "D24"]
[WhiteElo "2472"]
[BlackElo "2381"]
[Annotator "ChessBase"]
[PlyCount "70"]
[EventDate "2022.07.12"]
[EventType "swiss"]
[EventCountry "SVK"]
[SourceTitle "playchess.com"]
[Source "ChessBase"]
[SourceQuality "1"]
[TimeControl "40/5400+30:1800+30"]

1. d4 {[%emt 0:00:04]} Nf6 {[%emt 0:07:02]} 2. c4 {[%emt 0:00:02]} e6 {[%emt 0:00:08]} 3. Nf3 {[%emt 0:00:37]} d5 {[%emt 0:04:25]} 4. Nc3 {[%emt 0:00:09]} dxc4 {[%emt 0:00:06]} 5. e4 {[%emt 0:00:05]} b5 {[%emt 0:00:11]} 6. e5 {[%emt 0:00:07]} Nd5 {[%emt 0:00:03]} 7. Nxb5 {[%emt 0:00:05]} Nb6 {[%emt 0:00:04]} 8. Be2 {[%emt 0:00:05]} Nc6 {[%emt 0:00:40]} 9. O-O {[%emt 0:00:06]} Be7 {[%emt 0:00:05]} 10. Be3 {[%emt 0:00:06]} O-O {[%emt 0:00:10]} 11. Qc1 {[%emt 0:00:43]} Ba6 {[%emt 0:07:32]} 12. Nc3 {[%emt 0:00:34]} Nb4 {[%emt 0:04:48]} 13. Rd1 {[%emt 0:00:22]} Rb8 {[%emt 0:04:44]} 14. a3 {[%emt 0:28:41]} N4d5 {[%emt 0:16:57]} 15. b4 {[%emt 0:11:06]} Nxc3 {[%emt 0:08:31]} 16. Qxc3 {[%emt 0:00:02]} Bb5 {[%emt 0:00:15]} 17. Qc1 {[%emt 0:01:04]} Ra8 {[%emt 0:09:05]} 18. Nd2 {[%emt 0:11:25]} a5 {[%emt 0:00:23]} 19. bxa5 {[%emt 0:00:13]} Rxa5 {[%emt 0:00:12]} 20. Nxc4 {[%emt 0:00:09]} Bxc4 {[%emt 0:02:28]} 21. Bxc4 {[%emt 0:00:01]} Rxa3 {[%emt 0:03:23]} 22. Rxa3 {[%emt 0:00:06]} Bxa3 {[%emt 0:00:02]} 23. Qc2 {[%emt 0:00:01]} Nxc4 {[%emt 0:06:53]} 24. Qxc4 {[%emt 0:00:08]} Qd7 {[%emt 0:00:29]} 25. h4 {[%emt 0:05:15]} c6 {[%emt 0:04:33]} 26. h5 {[%emt 0:01:05]} h6 {[%emt 0:01:33]} 27. Rd3 {[%emt 0:05:04]} Be7 {[%emt 0:00:27]} 28. Qc1 {[%emt 0:00:09]} Kh7 {[%emt 0:01:23]} 29. Rc3 {[%emt 0:00:06]} Rc8 {[%emt 0:00:24]} 30. Qc2+ {[%emt 0:00:05]} Kh8 {[%emt 0:00:37]} 31. Qe4 {[%emt 0:00:24]} c5 {[%emt 0:04:54]} 32. dxc5 {[%emt 0:15:33]} Qd1+ {[%emt 0:02:09]} 33. Kh2 {[%emt 0:00:52]} Qxh5+ {[%emt 0:00:08]} 34. Kg1 {[%emt 0:00:31]} Qd1+ {[%emt 0:00:33]} 35. Kh2 {[%emt 0:00:00]} Qh5+ {[%emt 0:00:10]} 1/2-1/2

[Event "Slovakia Open Piestany-A 2022"]
[Site "Piestany"]
[Date "2022.07.15"]
[Round "5.7"]
[White "Donchenko, Alexander"]
[Black "Farkas, Gabor"]
[Result "1-0"]
[ECO "D30"]
[WhiteElo "2640"]
[BlackElo "2335"]
[Annotator "ChessBase"]
[PlyCount "81"]
[EventDate "2022.07.12"]
[EventType "swiss"]
[EventCountry "SVK"]
[SourceTitle "playchess.com"]
[Source "ChessBase"]
[SourceQuality "1"]
[TimeControl "40/5400+30:1800+30"]

1. d4 {[%emt 0:00:03]} d5 {[%emt 0:07:48]} 2. c4 {[%emt 0:00:15]} e6 {[%emt 0:00:06]} 3. Nf3 {[%emt 0:00:13]} c5 {[%emt 0:00:51]} 4. cxd5 {[%emt 0:00:38]} exd5 {[%emt 0:00:07]} 5. g3 {[%emt 0:00:06]} Nc6 {[%emt 0:00:20]} 6. Bg2 {[%emt 0:00:08]} Nf6 {[%emt 0:00:56]} 7. O-O {[%emt 0:00:08]} Be7 {[%emt 0:01:01]} 8. dxc5 {[%emt 0:00:27]} Bxc5 {[%emt 0:03:37]} 9. a3 {[%emt 0:00:20]} O-O {[%emt 0:02:08]} 10. b4 {[%emt 0:01:40]} Bb6 {[%emt 0:02:37]} 11. Nc3 {[%emt 0:01:20]} Re8 {[%emt 0:05:22]} 12. Bb2 {[%emt 0:08:05]} Bg4 {[%emt 0:08:37]} 13. Na4 {[%emt 0:02:14]} Qe7 {[%emt 0:04:50]} 14. h3 {[%emt 0:08:35]} Bxf3 {[%emt 0:04:24]} 15. exf3 {[%emt 0:00:37]} Rad8 {[%emt 0:06:40]} 16. f4 {[%emt 0:00:20]} Ne4 {[%emt 0:04:33]} 17. Nxb6 {[%emt 0:02:00]} axb6 {[%emt 0:00:02]} 18. Re1 {[%emt 0:00:52]} Qd6 {[%emt 0:01:23]} 19. Qb3 {[%emt 0:10:06]} Nf6 {[%emt 0:04:56]} 20. Rxe8+ {[%emt 0:06:11]} Nxe8 {[%emt 0:03:42]} 21. Rd1 {[%emt 0:00:19]} Ne7 {[%emt 0:01:02]} 22. Bd4 {[%emt 0:04:10]} h6 {[%emt 0:01:40]} 23. Qd3 {[%emt 0:02:42]} Qc6 {[%emt 0:05:01]} 24. f5 {[%emt 0:08:15]} Nf6 {[%emt 0:01:59]} 25. g4 {[%emt 0:01:26]} Ra8 {[%emt 0:05:43]} 26. Qe3 {[%emt 0:04:18]} Re8 {[%emt 0:00:42]} 27. Bxf6 {[%emt 0:04:17]} Qxf6 {[%emt 0:01:08]} 28. Rxd5 {[%emt 0:00:19]} Kf8 {[%emt 0:00:49]} 29. Rd7 {[%emt 0:04:33]} Nc6 {[%emt 0:03:49]} 30. Qf4 {[%emt 0:02:17]} Re1+ {[%emt 0:01:42]} 31. Kh2 {[%emt 0:00:33]} Ne5 {[%emt 0:00:24]} 32. Rxb7 {[%emt 0:09:43]} Qd6 {[%emt 0:00:50]} 33. h4 {[%emt 0:13:56]} Re2 {[%emt 0:05:52]} 34. Kg1 {[%emt 0:02:04]} Re1+ {[%emt 0:00:39]} 35. Kh2 {[%emt 0:00:01]} Re2 {[%emt 0:00:06]} 36. Kh3 {[%emt 0:01:32]} Rc2 {[%emt 0:01:04]} 37. Be4 {[%emt 0:01:16]} Qd4 {[%emt 0:00:31]} 38. Rb8+ {[%emt 0:01:34]} Ke7 {[%emt 0:00:10]} 39. f6+ {[%emt 0:00:04]} gxf6 {[%emt 0:00:53]} 40. Rb7+ {[%emt 0:00:22]} Ke8 {[%emt 0:01:47]} 41. Qxf6 {[%emt 0:31:27]} 1-0

[Event "Slovakia Open Piestany-A 2022"]
[Site "Piestany"]
[Date "2022.07.15"]
[Round "5.8"]
[White "Haring, Filip"]
[Black "Bhambure, Shantanu"]
[Result "0-1"]
[ECO "B90"]
[WhiteElo "2451"]
[BlackElo "2320"]
[Annotator "ChessBase"]
[PlyCount "62"]
[EventDate "2022.07.12"]
[EventType "swiss"]
[EventCountry "SVK"]
[SourceTitle "playchess.com"]
[Source "ChessBase"]
[SourceQuality "1"]
[TimeControl "40/5400+30:1800+30"]

1. e4 {[%emt 0:00:05]} c5 {[%emt 0:00:11]} 2. Nf3 {[%emt 0:00:13]} d6 {[%emt 0:00:06]} 3. d4 {[%emt 0:00:15]} cxd4 {[%emt 0:00:06]} 4. Nxd4 {[%emt 0:00:08]} Nf6 {[%emt 0:00:04]} 5. Nc3 {[%emt 0:00:09]} a6 {[%emt 0:00:05]} 6. Be3 {[%emt 0:00:25]} e5 {[%emt 0:00:08]} 7. Nb3 {[%emt 0:00:09]} Be6 {[%emt 0:00:06]} 8. h3 {[%emt 0:00:23]} Be7 {[%emt 0:02:10]} 9. Qf3 {[%emt 0:02:07]} O-O {[%emt 0:01:37]} 10. g4 {[%emt 0:00:47]} a5 {[%emt 0:02:43]} 11. a4 {[%emt 0:10:38]} Na6 {[%emt 0:05:28]} 12. O-O-O {[%emt 0:09:47]} Nd7 {[%emt 0:19:31]} 13. Kb1 {[%emt 0:03:41]} Nb4 {[%emt 0:04:33]} 14. Nd5 {[%emt 0:05:04]} Bxd5 {[%emt 0:03:47]} 15. exd5 {[%emt 0:00:48]} Bg5 {[%emt 0:02:40]} 16. Bb5 {[%emt 0:08:38]} Bxe3 {[%emt 0:04:04]} 17. fxe3 {[%emt 0:02:19]} Na6 {[%emt 0:03:13]} 18. h4 {[%emt 0:10:39]} Nc7 {[%emt 0:03:17]} 19. Bd3 {[%emt 0:02:08]} Nb6 {[%emt 0:09:33]} 20. g5 {[%emt 0:06:39]} Ncxd5 {[%emt 0:05:59]} 21. Nd2 {[%emt 0:07:24]} Qd7 {[%emt 0:18:17]} 22. Bb5 {[%emt 0:09:52]} Qe6 {[%emt 0:02:18]} 23. Ne4 {[%emt 0:12:12]} Nb4 {[%emt 0:02:25]} 24. b3 {[%emt 0:00:05]} d5 {[%emt 0:00:57]} 25. Nf6+ {[%emt 0:05:48]} gxf6 {[%emt 0:01:08]} 26. gxf6 {[%emt 0:00:07]} Kh8 {[%emt 0:00:22]} 27. Bf1 {[%emt 0:02:31]} Qc6 {[%emt 0:03:06]} 28. Rh2 {[%emt 0:00:47]} Rg8 {[%emt 0:00:55]} 29. Qf5 {[%emt 0:00:39]} Qe6 {[%emt 0:00:16]} 30. Qf3 {[%emt 0:00:28]} Qg4 {[%emt 0:00:24]} 31. Qxg4 {[%emt 0:00:06]} Rxg4 {[%emt 0:00:02]} 0-1